{"text_format":"1","workbook":"xlsx","n_sheets":1,"sheets":["Convênios"],"not_rendered":{"charts":0,"images":0,"macros":0,"external_links":0,"defined_names":33,"comments":0,"pivot_tables":0},"unopened":[],"bounds":{"document_bytes":16777216,"sheet_cells":100000,"rows_first":2000,"rows_last":500,"rows_between":2000,"halvings":0,"cell_chars":16384,"cell_head_chars":4096},"cells_cut":0,"cells_raw":0,"read":"whole","date_system":"1900"}

{"sheet":"Convênios","index":0,"n_rows":34,"n_cols":14,"rows_kept":34,"cut":false,"hidden":false,"merged":[[1,8,2,11]]}
[]
[null,"Prefeitura Municipal de Janaúba",null,null,null,null,null,null,"SEÇÃO DE LEGISLAÇÃO",null,null,null,null,"POSIÇÃO"]
[null,"Convênios a Aditar",null,null,null,null,null,null,null,null,null,null,null,"2015-12-01"]
[null,"Aditivo","Nº Convênio","Data do Convênio","Nº Decreto","Data do Decreto","Nº Parcelas","Vr da Parcela","Vr do Convênio","Vr Já Liberado","Saldo a Liberar","CONVENENTE","Ficha","DOTAÇÃO"]
[null,1,1,"2015-02-10",1,null,null,null,{"$f":"G5*H5","v":0},null,{"$f":"I5-J5","v":0},"Associação Comercial E Empresarial De Janaúba - Acijan",1,"02.01.01.04.122.1001.2.002.339136-00.1.10.001"]
[null,2,2,"2015-02-10",null,null,null,null,{"$f":"G6*H6","v":0},null,{"$f":"I6-J6","v":0},"Associação Dos Estudantes Universitários De Janauba",2,"02.09.01.04.122.9001.2.002.339136-00.1.10.001"]
[null,3,3,"2015-02-10",null,null,null,null,0,null,0,"Fazendinha Irmã Erlinda",3,"02.09.01.04.122.9001.2.002.339136-00.1.10.001"]
[null,{"$f":"B7+1","v":4},4,"2015-02-10",null,null,null,null,0,null,0,"Fazendinha Irmã Erlinda",4,"02.09.01.04.122.9001.2.002.339136-00.1.10.001"]
[null,5,5,"2015-02-10",null,null,null,null,0,null,0,"Associação Dom José Mauro",5,"02.09.01.04.122.9001.2.002.339136-00.1.10.001"]
[null,6,6,"2015-02-10",null,null,null,null,0,null,0,"Associação Dom José Mauro",6,"02.09.01.04.122.9001.2.002.339136-00.1.10.001"]
[null,7,7,"2015-02-10",null,null,null,null,0,null,0,"Associação M. Guarda Mirim",7,"02.09.01.04.122.9001.2.002.339136-00.1.10.001"]
[null,8,8,"2015-02-10",null,null,null,null,0,null,0,"Associação Dom José Mauro",8,"02.09.01.04.122.9001.2.002.339136-00.1.10.001"]
[null,9,9,"2015-02-10",null,null,null,null,0,null,0,"Liga Desportiva De Janauba",9,"02.09.01.04.122.9001.2.002.339136-00.1.10.001"]
[null,10,10,"2015-02-10",null,null,null,null,0,null,0,"Projeto Adolescente Cidadão Janauba E Nova Porteirinha - Apacijan",9,"02.09.01.04.122.9001.2.002.339136-00.1.10.001"]
[null,11,11,"2015-02-10",null,null,null,null,0,null,0,"Associação Solidária De Orientação A Criança E Ao Adolescente",9,"02.09.01.04.122.9001.2.002.339136-00.1.10.001"]
[null,12,12,"2015-02-10",null,null,null,null,0,null,0,"Projeto Adolescente Cidadão Janauba E Nova Porteirinha - Apacijan",9,"02.09.01.04.122.9001.2.002.339136-00.1.10.001"]
[null,13,13,"2015-02-10",null,null,null,null,0,null,0,"Associação Quilombola Bem Viver De Vila Nova Dos Poções",9,"02.09.01.04.122.9001.2.002.339136-00.1.10.001"]
[null,14,14,"2015-02-10",null,null,null,null,0,null,0,"Rede De Apoio Familiar Humanizado - Rafha",9,"02.09.01.04.122.9001.2.002.339136-00.1.10.001"]
[null,15,15,"2015-02-10",null,null,null,null,0,null,0,"Associação De Desenvolvimento Esportivo E Cultural De Janauba -Adec",9,"02.09.01.04.122.9001.2.002.339136-00.1.10.001"]
[null,16,16,"2015-02-10",null,null,null,null,0,null,0,"Associação Comercial E Empresarial De Janaúba - Acijan",9,"02.09.01.04.122.9001.2.002.339136-00.1.10.001"]
[null,17,null,null,null,null,null,null,0,null,0," ",null," "]
[null,18,null,null,null,null,null,null,0,null,0," ",null," "]
[null,19,null,null,null,null,null,null,0,null,0," ",null," "]
[null,20,null,null,null,null,null,null,0,null,0," ",null," "]
[null,21,null,null,null,null,null,null,0,null,0," ",null," "]
[null,22,null,null,null,null,null,null,0,null,0," ",null," "]
[null,23,null,null,null,null,null,null,0,null,0," ",null," "]
[null,24,null,null,null,null,null,null,0,null,0," ",null," "]
[null,25,null,null,null,null,null,null,0,null,0," ",null," "]
[null,26,null,null,null,null,null,null,0,null,0," ",null," "]
[null,27,null,null,null,null,null,null,0,null,0," ",null," "]
[null,28,null,null,null,null,null,null,0,null,0," ",null," "]
[null,29,null,null,null,null,null,null,0,null,0," ",null," "]
[null,30,null,null,null,null,null,null,0,null,0," ",null," "]